[Event "Titled Tuesday Blitz April 25 Early 2023"]
[White "Bruedigam, Martin"]
[Black "Kevlishvili, Robby"]
[WhiteFideId "24608033"]
[BlackFideId "1040634"]
[WhiteElo "2331"]
[BlackElo "2572"]
[Result "0-1"]
[Round "03"]
[TimeControl "180+2"]
[Date "2023.04.25"]
[WhiteClock "0:00:01"]
[BlackClock "0:00:17"]

1. d4 {[%clk 0:02:56]}  Nf6 {[%clk 0:02:58]} 2. c4 {[%clk 0:02:55]}  g6 {[%clk 0:02:58]} 3. f3 {[%clk 0:02:55]}  Nc6 {[%clk 0:02:55]} 4. e4 {[%clk 0:02:51]}  e5 {[%clk 0:02:54]} 5. d5 {[%clk 0:02:50]}  Nd4 {[%clk 0:02:53]} 6. Ne2 {[%clk 0:02:46]}  c5 {[%clk 0:02:42]} 7. dxc6 {[%clk 0:02:44]}  dxc6 {[%clk 0:02:41]} 8. Nbc3 {[%clk 0:02:31]}  Bg7 {[%clk 0:02:39]} 9. Be3 {[%clk 0:02:28]}  Nh5 {[%clk 0:02:26]} 10. Qd2 {[%clk 0:02:19]}  O-O {[%clk 0:02:20]} 11. O-O-O {[%clk 0:02:19]}  Nxe2+ {[%clk 0:01:50]} 12. Bxe2 {[%clk 0:02:09]}  Qa5 {[%clk 0:01:49]} 13. g4 {[%clk 0:01:40]}  Nf4 {[%clk 0:01:47]} 14. h4 {[%clk 0:01:27]}  Be6 {[%clk 0:01:41]} 15. h5 {[%clk 0:01:24]}  Rfd8 {[%clk 0:01:36]} 16. Qc2 {[%clk 0:01:23]}  Bf8 {[%clk 0:01:35]} 17. hxg6 {[%clk 0:00:56]}  hxg6 {[%clk 0:01:35]} 18. Rh2 {[%clk 0:00:22]}  Bc5 {[%clk 0:00:45]} 19. Bxf4 {[%clk 0:00:20]}  exf4 {[%clk 0:00:44]} 20. Rdh1 {[%clk 0:00:21]}  Bd4 {[%clk 0:00:36]} 21. Bd3 {[%clk 0:00:11]}  Be5 {[%clk 0:00:34]} 22. Rh7 {[%clk 0:00:07]}  Qc5 {[%clk 0:00:21]} 23. Be2 {[%clk 0:00:03]}  Qe3+ {[%clk 0:00:20]} 24. Kb1 {[%clk 0:00:04]}  Kf8 {[%clk 0:00:20]} 25. Qb3 {[%clk 0:00:02]}  b6 {[%clk 0:00:20]} 26. Qa3+ {[%clk 0:00:02]}  Qc5 {[%clk 0:00:18]} 27. Qb3 {[%clk 0:00:01]}  Ke7 {[%clk 0:00:17]} 0-1


[Site "https://www.chess.com"]

[Event "Titled Tuesday Blitz April 25 Early 2023"]
[White "Indjic, Aleksandar"]
[Black "Moksh Amit Doshi"]
[WhiteFideId "911925"]
[BlackFideId "25064967"]
[WhiteElo "2614"]
[BlackElo "2297"]
[Result "1-0"]
[Round "03"]
[TimeControl "180+2"]
[Date "2023.04.25"]
[WhiteClock "0:00:24"]
[BlackClock "0:00:02"]

1. e4 {[%clk 0:03:00]}  e5 {[%clk 0:02:56]} 2. Nf3 {[%clk 0:03:01]}  Nc6 {[%clk 0:02:50]} 3. Nc3 {[%clk 0:03:01]}  Nf6 {[%clk 0:02:47]} 4. d4 {[%clk 0:03:02]}  exd4 {[%clk 0:02:47]} 5. Nxd4 {[%clk 0:03:02]}  Bb4 {[%clk 0:02:47]} 6. Nxc6 {[%clk 0:03:02]}  bxc6 {[%clk 0:02:48]} 7. Bd3 {[%clk 0:03:02]}  d5 {[%clk 0:02:47]} 8. exd5 {[%clk 0:03:00]}  O-O {[%clk 0:02:47]} 9. O-O {[%clk 0:03:00]}  cxd5 {[%clk 0:02:43]} 10. h3 {[%clk 0:03:00]}  c6 {[%clk 0:02:42]} 11. Qf3 {[%clk 0:03:00]}  Re8 {[%clk 0:02:30]} 12. Bf4 {[%clk 0:02:55]}  Bd6 {[%clk 0:02:29]} 13. Ne2 {[%clk 0:02:54]}  Rb8 {[%clk 0:02:29]} 14. b3 {[%clk 0:02:53]}  Rb4 {[%clk 0:02:23]} 15. c4 {[%clk 0:02:51]}  Bxf4 {[%clk 0:02:15]} 16. Nxf4 {[%clk 0:02:50]}  h6 {[%clk 0:01:33]} 17. Rfe1 {[%clk 0:02:47]}  Rb8 {[%clk 0:01:18]} 18. Rxe8+ {[%clk 0:02:44]}  Qxe8 {[%clk 0:01:19]} 19. cxd5 {[%clk 0:02:43]}  Qe5 {[%clk 0:01:15]} 20. Rc1 {[%clk 0:02:34]}  cxd5 {[%clk 0:01:14]} 21. Qe3 {[%clk 0:02:34]}  Qd6 {[%clk 0:01:04]} 22. Ne2 {[%clk 0:02:30]}  a5 {[%clk 0:01:02]} 23. Nd4 {[%clk 0:02:29]}  Bd7 {[%clk 0:01:02]} 24. Qd2 {[%clk 0:02:27]}  a4 {[%clk 0:01:00]} 25. bxa4 {[%clk 0:02:21]}  Bxa4 {[%clk 0:01:01]} 26. Rb1 {[%clk 0:02:19]}  Rxb1+ {[%clk 0:01:00]} 27. Bxb1 {[%clk 0:02:19]}  Qc5 {[%clk 0:00:57]} 28. Bd3 {[%clk 0:02:16]}  Bd7 {[%clk 0:00:55]} 29. Qe3 {[%clk 0:02:16]}  Kf8 {[%clk 0:00:52]} 30. Nc2 {[%clk 0:02:14]}  Qxe3 {[%clk 0:00:49]} 31. Nxe3 {[%clk 0:02:15]}  Ke7 {[%clk 0:00:50]} 32. g4 {[%clk 0:02:04]}  Kd6 {[%clk 0:00:49]} 33. f4 {[%clk 0:02:05]}  Kc5 {[%clk 0:00:46]} 34. Nc2 {[%clk 0:02:01]}  g5 {[%clk 0:00:38]} 35. fxg5 {[%clk 0:01:57]}  hxg5 {[%clk 0:00:39]} 36. Kf2 {[%clk 0:01:57]}  d4 {[%clk 0:00:38]} 37. Ne1 {[%clk 0:01:54]}  Nd5 {[%clk 0:00:38]} 38. Nf3 {[%clk 0:01:53]}  f6 {[%clk 0:00:37]} 39. Nd2 {[%clk 0:01:53]}  Kd6 {[%clk 0:00:25]} 40. Kg3 {[%clk 0:01:47]}  Be6 {[%clk 0:00:24]} 41. a4 {[%clk 0:01:44]}  Nb4 {[%clk 0:00:20]} 42. Bb1 {[%clk 0:01:39]}  Nc6 {[%clk 0:00:21]} 43. h4 {[%clk 0:01:35]}  gxh4+ {[%clk 0:00:21]} 44. Kxh4 {[%clk 0:01:36]}  Ke5 {[%clk 0:00:22]} 45. Kg3 {[%clk 0:01:34]}  Bd5 {[%clk 0:00:21]} 46. Nf3+ {[%clk 0:01:32]}  Kd6 {[%clk 0:00:18]} 47. Kf4 {[%clk 0:01:32]}  Kc5 {[%clk 0:00:16]} 48. Be4 {[%clk 0:01:22]}  Bxe4 {[%clk 0:00:13]} 49. Kxe4 {[%clk 0:01:23]}  Kc4 {[%clk 0:00:14]} 50. Kf5 {[%clk 0:01:20]}  d3 {[%clk 0:00:10]} 51. Kxf6 {[%clk 0:01:17]}  Kc3 {[%clk 0:00:10]} 52. Ng5 {[%clk 0:00:48]}  Kd4 {[%clk 0:00:07]} 53. Ne6+ {[%clk 0:00:46]}  Ke3 {[%clk 0:00:06]} 54. g5 {[%clk 0:00:33]}  d2 {[%clk 0:00:07]} 55. g6 {[%clk 0:00:34]}  d1=Q {[%clk 0:00:07]} 56. g7 {[%clk 0:00:34]}  Qa1+ {[%clk 0:00:06]} 57. Kf7 {[%clk 0:00:33]}  Ne5+ {[%clk 0:00:07]} 58. Kf8 {[%clk 0:00:30]}  Nd7+ {[%clk 0:00:07]} 59. Ke7 {[%clk 0:00:30]}  Qf6+ {[%clk 0:00:03]} 60. Kxd7 {[%clk 0:00:30]}  Qf7+ {[%clk 0:00:04]} 61. Kd6 {[%clk 0:00:31]}  Qg6 {[%clk 0:00:04]} 62. Ke5 {[%clk 0:00:30]}  Qe4+ {[%clk 0:00:03]} 63. Kf6 {[%clk 0:00:30]}  Qf3+ {[%clk 0:00:04]} 64. Kg6 {[%clk 0:00:30]}  Qg4+ {[%clk 0:00:04]} 65. Ng5 {[%clk 0:00:29]}  Qc4 {[%clk 0:00:03]} 66. a5 {[%clk 0:00:27]}  Kf4 {[%clk 0:00:02]} 67. Kf6 {[%clk 0:00:24]} 1-0


[Site "https://www.chess.com"]

[Event "Titled Tuesday Blitz April 25 Early 2023"]
[White "Galchenko, Matvey"]
[Black "Yaniuk, Volodymyr"]
[WhiteFideId "24175480"]
[BlackFideId "14133083"]
[WhiteElo "2423"]
[BlackElo "2141"]
[Result "1-0"]
[Round "03"]
[TimeControl "180+2"]
[Date "2023.04.25"]
[WhiteClock "0:00:17"]
[BlackClock "0:00:12"]

1. f4 {[%clk 0:02:50]}  d5 {[%clk 0:02:58]} 2. Nf3 {[%clk 0:02:49]}  c5 {[%clk 0:02:55]} 3. g3 {[%clk 0:02:50]}  Nc6 {[%clk 0:02:55]} 4. Bg2 {[%clk 0:02:50]}  g6 {[%clk 0:02:56]} 5. O-O {[%clk 0:02:51]}  Bg7 {[%clk 0:02:56]} 6. d3 {[%clk 0:02:52]}  Bg4 {[%clk 0:02:54]} 7. Nc3 {[%clk 0:02:52]}  Bxf3 {[%clk 0:02:50]} 8. Bxf3 {[%clk 0:02:53]}  e6 {[%clk 0:02:50]} 9. e4 {[%clk 0:02:52]}  Nge7 {[%clk 0:02:48]} 10. Bg2 {[%clk 0:02:51]}  O-O {[%clk 0:02:47]} 11. Qe2 {[%clk 0:02:51]}  Nd4 {[%clk 0:02:47]} 12. Qf2 {[%clk 0:02:51]}  b6 {[%clk 0:02:39]} 13. e5 {[%clk 0:02:23]}  h5 {[%clk 0:02:32]} 14. Nd1 {[%clk 0:02:22]}  Qd7 {[%clk 0:02:25]} 15. c3 {[%clk 0:02:22]}  Ndc6 {[%clk 0:02:25]} 16. Qe2 {[%clk 0:02:18]}  Nf5 {[%clk 0:02:21]} 17. Nf2 {[%clk 0:02:09]}  f6 {[%clk 0:02:17]} 18. exf6 {[%clk 0:02:04]}  Bxf6 {[%clk 0:02:17]} 19. Bd2 {[%clk 0:02:01]}  e5 {[%clk 0:02:07]} 20. Rae1 {[%clk 0:01:58]}  Rae8 {[%clk 0:02:05]} 21. Qf3 {[%clk 0:01:58]}  Rd8 {[%clk 0:01:50]} 22. a3 {[%clk 0:01:40]}  exf4 {[%clk 0:01:28]} 23. Bxf4 {[%clk 0:01:39]}  Nce7 {[%clk 0:01:26]} 24. Nh3 {[%clk 0:01:35]}  d4 {[%clk 0:01:20]} 25. Qe4 {[%clk 0:01:05]}  dxc3 {[%clk 0:01:13]} 26. bxc3 {[%clk 0:01:06]}  Qxd3 {[%clk 0:01:02]} 27. Qe6+ {[%clk 0:01:05]}  Kg7 {[%clk 0:00:55]} 28. Be5 {[%clk 0:00:58]}  Bxe5 {[%clk 0:00:29]} 29. Qxe5+ {[%clk 0:00:58]}  Rf6 {[%clk 0:00:29]} 30. Ng5 {[%clk 0:00:50]}  Rd6 {[%clk 0:00:25]} 31. Be4 {[%clk 0:00:42]}  Qb5 {[%clk 0:00:22]} 32. Bb1 {[%clk 0:00:23]}  Qd7 {[%clk 0:00:21]} 33. Ne4 {[%clk 0:00:23]}  Re6 {[%clk 0:00:19]} 34. Nxf6 {[%clk 0:00:23]}  Rxf6 {[%clk 0:00:17]} 35. h3 {[%clk 0:00:20]}  Kf7 {[%clk 0:00:16]} 36. g4 {[%clk 0:00:20]}  hxg4 {[%clk 0:00:16]} 37. hxg4 {[%clk 0:00:21]}  Re6 {[%clk 0:00:14]} 38. Qxe6+ {[%clk 0:00:20]}  Qxe6 {[%clk 0:00:15]} 39. Rxe6 {[%clk 0:00:21]}  Kxe6 {[%clk 0:00:15]} 40. gxf5+ {[%clk 0:00:21]}  gxf5 {[%clk 0:00:16]} 41. Re1+ {[%clk 0:00:21]}  Kd6 {[%clk 0:00:16]} 42. Kf2 {[%clk 0:00:20]}  Nd5 {[%clk 0:00:17]} 43. c4 {[%clk 0:00:19]}  Ne7 {[%clk 0:00:16]} 44. Kf3 {[%clk 0:00:19]}  a6 {[%clk 0:00:16]} 45. Kf4 {[%clk 0:00:19]}  b5 {[%clk 0:00:16]} 46. Bd3 {[%clk 0:00:19]}  b4 {[%clk 0:00:15]} 47. Rb1 {[%clk 0:00:15]}  a5 {[%clk 0:00:14]} 48. a4 {[%clk 0:00:12]}  Nc6 {[%clk 0:00:13]} 49. Bxf5 {[%clk 0:00:13]}  Ne5 {[%clk 0:00:13]} 50. Rd1+ {[%clk 0:00:12]}  Kc6 {[%clk 0:00:11]} 51. Kxe5 {[%clk 0:00:13]}  b3 {[%clk 0:00:11]} 52. Rd6+ {[%clk 0:00:13]}  Kb7 {[%clk 0:00:10]} 53. Kd5 {[%clk 0:00:14]}  b2 {[%clk 0:00:11]} 54. Bb1 {[%clk 0:00:14]}  Ka7 {[%clk 0:00:11]} 55. Kxc5 {[%clk 0:00:15]}  Kb7 {[%clk 0:00:12]} 56. Rb6+ {[%clk 0:00:15]}  Ka7 {[%clk 0:00:12]} 57. Kc6 {[%clk 0:00:15]}  Ka8 {[%clk 0:00:12]} 58. Kc7 {[%clk 0:00:15]}  Ka7 {[%clk 0:00:13]} 59. Rc6 {[%clk 0:00:16]}  Ka8 {[%clk 0:00:12]} 60. Ra6# {[%clk 0:00:17]} 1-0


[Site "https://www.chess.com"]

[Event "Titled Tuesday Blitz April 25 Early 2023"]
[White "Bagrationi, Alexander"]
[Black "Harsha Bharathakoti"]
[WhiteFideId "14104954"]
[BlackFideId "5078776"]
[WhiteElo "2398"]
[BlackElo "2504"]
[Result "0-1"]
[Round "03"]
[TimeControl "180+2"]
[Date "2023.04.25"]
[WhiteClock "0:00:03"]
[BlackClock "0:00:27"]

1. e4 {[%clk 0:02:58]}  g6 {[%clk 0:02:59]} 2. d4 {[%clk 0:02:58]}  Bg7 {[%clk 0:02:59]} 3. Nc3 {[%clk 0:02:58]}  d6 {[%clk 0:03:00]} 4. f4 {[%clk 0:02:59]}  a6 {[%clk 0:02:59]} 5. a4 {[%clk 0:02:51]}  Nf6 {[%clk 0:02:51]} 6. Nf3 {[%clk 0:02:50]}  c5 {[%clk 0:02:51]} 7. dxc5 {[%clk 0:02:09]}  Qa5 {[%clk 0:02:49]} 8. Bd3 {[%clk 0:02:09]}  Qxc5 {[%clk 0:02:49]} 9. Qe2 {[%clk 0:02:08]}  Bg4 {[%clk 0:02:49]} 10. h3 {[%clk 0:01:45]}  Bxf3 {[%clk 0:02:49]} 11. Qxf3 {[%clk 0:01:45]}  Nc6 {[%clk 0:02:48]} 12. Be3 {[%clk 0:01:45]}  Qa5 {[%clk 0:02:32]} 13. O-O {[%clk 0:01:43]}  O-O {[%clk 0:02:33]} 14. Qf2 {[%clk 0:01:21]}  Nd7 {[%clk 0:02:32]} 15. Nd5 {[%clk 0:00:47]}  e6 {[%clk 0:01:37]} 16. Nb6 {[%clk 0:00:34]}  Nxb6 {[%clk 0:01:37]} 17. Bxb6 {[%clk 0:00:34]}  Qxb6 {[%clk 0:01:38]} 18. Qxb6 {[%clk 0:00:34]}  Bd4+ {[%clk 0:01:39]} 19. Qxd4 {[%clk 0:00:33]}  Nxd4 {[%clk 0:01:39]} 20. c3 {[%clk 0:00:28]}  Nb3 {[%clk 0:01:33]} 21. Ra3 {[%clk 0:00:28]}  Nc5 {[%clk 0:01:33]} 22. Bc2 {[%clk 0:00:27]}  Rac8 {[%clk 0:01:32]} 23. Kf2 {[%clk 0:00:23]}  Rfd8 {[%clk 0:01:31]} 24. Ke3 {[%clk 0:00:22]}  Kf8 {[%clk 0:01:32]} 25. Rd1 {[%clk 0:00:22]}  Ke7 {[%clk 0:01:32]} 26. b4 {[%clk 0:00:21]}  Nd7 {[%clk 0:01:32]} 27. g4 {[%clk 0:00:21]}  h6 {[%clk 0:01:31]} 28. Rd3 {[%clk 0:00:18]}  g5 {[%clk 0:01:32]} 29. f5 {[%clk 0:00:16]}  Ne5 {[%clk 0:01:32]} 30. Rd4 {[%clk 0:00:13]}  Nc4+ {[%clk 0:01:33]} 31. Rxc4 {[%clk 0:00:14]}  Rxc4 {[%clk 0:01:34]} 32. Bd3 {[%clk 0:00:14]}  Rc7 {[%clk 0:01:34]} 33. c4 {[%clk 0:00:14]}  Kf6 {[%clk 0:01:28]} 34. Kd4 {[%clk 0:00:13]}  exf5 {[%clk 0:01:25]} 35. exf5 {[%clk 0:00:11]}  Re8 {[%clk 0:01:26]} 36. Be4 {[%clk 0:00:11]}  Rxe4+ {[%clk 0:01:03]} 37. Kxe4 {[%clk 0:00:11]}  Rxc4+ {[%clk 0:01:04]} 38. Kd5 {[%clk 0:00:11]}  Rxb4 {[%clk 0:01:05]} 39. Kxd6 {[%clk 0:00:12]}  a5 {[%clk 0:00:58]} 40. Kc7 {[%clk 0:00:11]}  h5 {[%clk 0:00:40]} 41. gxh5 {[%clk 0:00:06]}  Kxf5 {[%clk 0:00:40]} 42. h6 {[%clk 0:00:06]}  Kg6 {[%clk 0:00:40]} 43. Rf3 {[%clk 0:00:04]}  Rxa4 {[%clk 0:00:26]} 44. h7 {[%clk 0:00:03]}  Rh4 {[%clk 0:00:26]} 45. Kxb7 {[%clk 0:00:02]}  Rxh7 {[%clk 0:00:26]} 46. Kb6 {[%clk 0:00:02]}  a4 {[%clk 0:00:26]} 47. Kb5 {[%clk 0:00:01]}  Rh4 {[%clk 0:00:27]} 48. Rg3 {[%clk 0:00:01]}  f5 {[%clk 0:00:26]} 49. Ra3 {[%clk 0:00:02]}  Re4 {[%clk 0:00:26]} 50. Kc5 {[%clk 0:00:02]}  g4 {[%clk 0:00:24]} 51. hxg4 {[%clk 0:00:02]}  fxg4 {[%clk 0:00:25]} 52. Kd5 {[%clk 0:00:03]}  Rb4 {[%clk 0:00:26]} 53. Ke5 {[%clk 0:00:03]}  Kg5 {[%clk 0:00:26]} 54. Ra2 {[%clk 0:00:03]}  g3 {[%clk 0:00:26]} 55. Rc2 {[%clk 0:00:03]}  Kg4 {[%clk 0:00:25]} 56. Rc8 {[%clk 0:00:04]}  a3 {[%clk 0:00:25]} 57. Rg8+ {[%clk 0:00:04]}  Kf3 {[%clk 0:00:26]} 58. Ra8 {[%clk 0:00:04]}  Rb3 {[%clk 0:00:26]} 59. Rf8+ {[%clk 0:00:05]}  Ke2 {[%clk 0:00:26]} 60. Kd4 {[%clk 0:00:04]}  a2 {[%clk 0:00:26]} 61. Ra8 {[%clk 0:00:04]}  Rb2 {[%clk 0:00:26]} 62. Ra3 {[%clk 0:00:04]}  g2 {[%clk 0:00:27]} 63. Re3+ {[%clk 0:00:04]}  Kf2 {[%clk 0:00:27]} 64. Re1 {[%clk 0:00:03]}  Kxe1 {[%clk 0:00:27]} 0-1


[Site "https://www.chess.com"]

[Event "Titled Tuesday Blitz April 25 Early 2023"]
[White "Janik, Igor"]
[Black "Dixit, Nikhil"]
[WhiteFideId "1159259"]
[BlackFideId "5059534"]
[WhiteElo "2484"]
[BlackElo "2207"]
[Result "1-0"]
[Round "03"]
[TimeControl "180+2"]
[Date "2023.04.25"]
[WhiteClock "0:00:22"]
[BlackClock "0:00:20"]

1. b3 {[%clk 0:03:00]}  Nf6 {[%clk 0:02:57]} 2. Bb2 {[%clk 0:02:59]}  d6 {[%clk 0:02:56]} 3. d4 {[%clk 0:02:55]}  g6 {[%clk 0:02:48]} 4. Nf3 {[%clk 0:02:53]}  Bg7 {[%clk 0:02:48]} 5. g3 {[%clk 0:02:49]}  c5 {[%clk 0:02:40]} 6. dxc5 {[%clk 0:02:45]}  Qa5+ {[%clk 0:02:39]} 7. Nbd2 {[%clk 0:02:32]}  Qxc5 {[%clk 0:02:37]} 8. Bd4 {[%clk 0:02:25]}  Qc7 {[%clk 0:02:34]} 9. Bg2 {[%clk 0:02:24]}  Nc6 {[%clk 0:02:34]} 10. Bb2 {[%clk 0:02:24]}  O-O {[%clk 0:02:31]} 11. O-O {[%clk 0:02:23]}  e5 {[%clk 0:02:30]} 12. c4 {[%clk 0:02:18]}  d5 {[%clk 0:02:23]} 13. cxd5 {[%clk 0:02:13]}  Nxd5 {[%clk 0:02:23]} 14. Rc1 {[%clk 0:02:03]}  Rd8 {[%clk 0:02:17]} 15. Qc2 {[%clk 0:01:46]}  Bf5 {[%clk 0:02:07]} 16. e4 {[%clk 0:01:39]}  Ndb4 {[%clk 0:02:05]} 17. Qc4 {[%clk 0:01:26]}  Nxa2 {[%clk 0:01:38]} 18. exf5 {[%clk 0:01:14]}  Nxc1 {[%clk 0:01:37]} 19. Rxc1 {[%clk 0:01:06]}  Bh6 {[%clk 0:01:24]} 20. Bxe5 {[%clk 0:00:50]}  Qd7 {[%clk 0:01:21]} 21. Bf4 {[%clk 0:00:50]}  Bxf4 {[%clk 0:01:20]} 22. Qxf4 {[%clk 0:00:51]}  Qxf5 {[%clk 0:01:16]} 23. Qxf5 {[%clk 0:00:51]}  gxf5 {[%clk 0:01:17]} 24. Nc4 {[%clk 0:00:52]}  Rd3 {[%clk 0:01:15]} 25. Rb1 {[%clk 0:00:41]}  Rad8 {[%clk 0:01:13]} 26. Ne3 {[%clk 0:00:41]}  Nb4 {[%clk 0:00:59]} 27. Ne5 {[%clk 0:00:37]}  Rd2 {[%clk 0:00:55]} 28. Bxb7 {[%clk 0:00:34]}  f4 {[%clk 0:00:52]} 29. gxf4 {[%clk 0:00:34]}  Nc2 {[%clk 0:00:47]} 30. Nxc2 {[%clk 0:00:33]}  Rxc2 {[%clk 0:00:47]} 31. Be4 {[%clk 0:00:28]}  Ra2 {[%clk 0:00:46]} 32. Kg2 {[%clk 0:00:26]}  Rdd2 {[%clk 0:00:46]} 33. Nd3 {[%clk 0:00:20]}  a5 {[%clk 0:00:46]} 34. Kf3 {[%clk 0:00:21]}  a4 {[%clk 0:00:46]} 35. bxa4 {[%clk 0:00:21]}  Rxa4 {[%clk 0:00:46]} 36. Ke3 {[%clk 0:00:21]}  Rda2 {[%clk 0:00:42]} 37. Rg1+ {[%clk 0:00:22]}  Kh8 {[%clk 0:00:27]} 38. Ne5 {[%clk 0:00:20]}  Ra7 {[%clk 0:00:25]} 39. Bd5 {[%clk 0:00:19]}  R2a3+ {[%clk 0:00:24]} 40. Ke4 {[%clk 0:00:19]}  R3a4+ {[%clk 0:00:24]} 41. Kf5 {[%clk 0:00:20]}  h6 {[%clk 0:00:22]} 42. Bxf7 {[%clk 0:00:17]}  Kh7 {[%clk 0:00:18]} 43. Bg8+ {[%clk 0:00:16]}  Kh8 {[%clk 0:00:17]} 44. Nf7+ {[%clk 0:00:17]}  Rxf7+ {[%clk 0:00:18]} 45. Bxf7 {[%clk 0:00:18]}  Ra5+ {[%clk 0:00:18]} 46. Kf6 {[%clk 0:00:18]}  Ra6+ {[%clk 0:00:19]} 47. Be6 {[%clk 0:00:19]}  Ra7 {[%clk 0:00:20]} 48. f5 {[%clk 0:00:19]}  h5 {[%clk 0:00:20]} 49. Rg6 {[%clk 0:00:20]}  Kh7 {[%clk 0:00:19]} 50. Kg5 {[%clk 0:00:20]}  h4 {[%clk 0:00:19]} 51. Rh6+ {[%clk 0:00:20]}  Kg7 {[%clk 0:00:19]} 52. f6+ {[%clk 0:00:21]}  Kf8 {[%clk 0:00:20]} 53. Rh8# {[%clk 0:00:22]} 1-0


[Site "https://www.chess.com"]

[Event "Titled Tuesday Blitz April 25 Early 2023"]
[White "Tang, Andrew"]
[Black "Nouri, Alekhine"]
[WhiteFideId "2059630"]
[BlackFideId "5216184"]
[WhiteElo "2596"]
[BlackElo "2151"]
[Result "1-0"]
[Round "03"]
[TimeControl "180+2"]
[Date "2023.04.25"]
[WhiteClock "0:00:07"]
[BlackClock "0:00:05"]

1. d4 {[%clk 0:03:00]}  Nf6 {[%clk 0:02:59]} 2. c4 {[%clk 0:03:00]}  c5 {[%clk 0:02:59]} 3. d5 {[%clk 0:03:00]}  e6 {[%clk 0:02:59]} 4. Nc3 {[%clk 0:02:59]}  exd5 {[%clk 0:03:00]} 5. cxd5 {[%clk 0:02:59]}  d6 {[%clk 0:03:00]} 6. e4 {[%clk 0:03:00]}  g6 {[%clk 0:03:01]} 7. Nge2 {[%clk 0:03:00]}  Bg7 {[%clk 0:03:01]} 8. Ng3 {[%clk 0:03:00]}  O-O {[%clk 0:03:01]} 9. Be2 {[%clk 0:03:00]}  Re8 {[%clk 0:02:59]} 10. O-O {[%clk 0:03:00]}  a6 {[%clk 0:03:00]} 11. a4 {[%clk 0:03:00]}  h5 {[%clk 0:03:00]} 12. Bg5 {[%clk 0:03:00]}  Nbd7 {[%clk 0:03:00]} 13. Qd2 {[%clk 0:03:00]}  Qb6 {[%clk 0:03:00]} 14. h3 {[%clk 0:02:50]}  Qb4 {[%clk 0:02:56]} 15. a5 {[%clk 0:02:30]}  Qd4 {[%clk 0:02:55]} 16. Qc2 {[%clk 0:02:29]}  b5 {[%clk 0:02:33]} 17. axb6 {[%clk 0:02:12]}  Qb4 {[%clk 0:02:10]} 18. Nb5 {[%clk 0:01:58]}  Nxe4 {[%clk 0:01:29]} 19. Nxe4 {[%clk 0:01:28]}  Qxe4 {[%clk 0:01:20]} 20. Bd3 {[%clk 0:01:27]}  Qxd5 {[%clk 0:01:20]} 21. Nc7 {[%clk 0:01:09]}  Qxg5 {[%clk 0:01:19]} 22. Nxe8 {[%clk 0:01:07]}  Bb7 {[%clk 0:00:59]} 23. f4 {[%clk 0:00:58]}  Bd4+ {[%clk 0:00:54]} 24. Kh2 {[%clk 0:00:58]}  Qd8 {[%clk 0:00:40]} 25. Rae1 {[%clk 0:00:22]}  Qxb6 {[%clk 0:00:19]} 26. Bxg6 {[%clk 0:00:21]}  Qxb2 {[%clk 0:00:19]} 27. Bxf7+ {[%clk 0:00:19]}  Kxf7 {[%clk 0:00:13]} 28. Qh7+ {[%clk 0:00:14]}  Kf8 {[%clk 0:00:12]} 29. Qh6+ {[%clk 0:00:14]}  Kf7 {[%clk 0:00:11]} 30. Qxh5+ {[%clk 0:00:13]}  Kf8 {[%clk 0:00:12]} 31. Qh6+ {[%clk 0:00:12]}  Kf7 {[%clk 0:00:12]} 32. Nxd6+ {[%clk 0:00:11]}  Kg8 {[%clk 0:00:12]} 33. Qg6+ {[%clk 0:00:10]}  Bg7 {[%clk 0:00:11]} 34. Re7 {[%clk 0:00:07]}  Nf8 {[%clk 0:00:05]} 35. Qf7+ {[%clk 0:00:07]}  Kh7 {[%clk 0:00:06]} 36. Qh5+ {[%clk 0:00:07]}  Kg8 {[%clk 0:00:06]} 37. Qg4 {[%clk 0:00:06]}  Bd5 {[%clk 0:00:04]} 38. Nf5 {[%clk 0:00:06]}  Qxg2+ {[%clk 0:00:04]} 39. Qxg2 {[%clk 0:00:06]}  Bxg2 {[%clk 0:00:05]} 40. Rxg7+ {[%clk 0:00:06]}  Kh8 {[%clk 0:00:05]} 41. Rxg2 {[%clk 0:00:07]}  a5 {[%clk 0:00:05]} 42. Rfg1 {[%clk 0:00:07]}  Ne6 {[%clk 0:00:05]} 43. Rg4 {[%clk 0:00:07]} 1-0


[Site "https://www.chess.com"]

[Event "Titled Tuesday Blitz April 25 Early 2023"]
[White "Aaditya Dhingra"]
[Black "Steinberg, Nitzan"]
[WhiteFideId "25678191"]
[BlackFideId "2801795"]
[WhiteElo "2083"]
[BlackElo "2486"]
[Result "1-0"]
[Round "03"]
[TimeControl "180+2"]
[Date "2023.04.25"]
[WhiteClock "0:00:17"]
[BlackClock "0:00:16"]

1. e4 {[%clk 0:03:00]}  c5 {[%clk 0:02:53]} 2. Nf3 {[%clk 0:03:00]}  e6 {[%clk 0:02:53]} 3. d4 {[%clk 0:02:57]}  cxd4 {[%clk 0:02:54]} 4. Nxd4 {[%clk 0:02:58]}  Nc6 {[%clk 0:02:55]} 5. Nc3 {[%clk 0:02:57]}  Qc7 {[%clk 0:02:55]} 6. Be3 {[%clk 0:02:55]}  a6 {[%clk 0:02:56]} 7. Be2 {[%clk 0:02:55]}  Nf6 {[%clk 0:02:57]} 8. O-O {[%clk 0:02:54]}  Be7 {[%clk 0:02:57]} 9. f4 {[%clk 0:02:52]}  d6 {[%clk 0:02:57]} 10. Kh1 {[%clk 0:02:53]}  O-O {[%clk 0:02:57]} 11. a4 {[%clk 0:02:52]}  Nb4 {[%clk 0:02:57]} 12. Bf3 {[%clk 0:02:44]}  Re8 {[%clk 0:02:48]} 13. a5 {[%clk 0:02:40]}  Bd7 {[%clk 0:02:37]} 14. g4 {[%clk 0:02:38]}  h6 {[%clk 0:02:29]} 15. Bg2 {[%clk 0:02:22]}  Nh7 {[%clk 0:02:21]} 16. Qd2 {[%clk 0:02:14]}  Nf8 {[%clk 0:02:03]} 17. Nce2 {[%clk 0:02:02]}  Nc6 {[%clk 0:02:00]} 18. Ng3 {[%clk 0:01:59]}  Nxd4 {[%clk 0:01:57]} 19. Bxd4 {[%clk 0:01:59]}  Rac8 {[%clk 0:01:54]} 20. Bc3 {[%clk 0:01:55]}  e5 {[%clk 0:01:49]} 21. Nf5 {[%clk 0:01:43]}  Ng6 {[%clk 0:01:36]} 22. Nxe7+ {[%clk 0:01:31]}  Nxe7 {[%clk 0:01:36]} 23. f5 {[%clk 0:01:30]}  f6 {[%clk 0:01:35]} 24. Rad1 {[%clk 0:01:22]}  Bb5 {[%clk 0:01:34]} 25. Rfe1 {[%clk 0:01:17]}  Red8 {[%clk 0:01:35]} 26. h4 {[%clk 0:01:03]}  Kf7 {[%clk 0:01:28]} 27. Kh2 {[%clk 0:01:02]}  Bc6 {[%clk 0:01:19]} 28. Bb4 {[%clk 0:00:58]}  d5 {[%clk 0:01:02]} 29. Bxe7 {[%clk 0:00:57]}  Kxe7 {[%clk 0:00:57]} 30. exd5 {[%clk 0:00:56]}  Be8 {[%clk 0:00:58]} 31. Qb4+ {[%clk 0:00:52]}  Rd6 {[%clk 0:00:49]} 32. Rc1 {[%clk 0:00:45]}  h5 {[%clk 0:00:35]} 33. g5 {[%clk 0:00:43]}  Bd7 {[%clk 0:00:31]} 34. c4 {[%clk 0:00:40]}  b6 {[%clk 0:00:22]} 35. axb6 {[%clk 0:00:38]}  Qxb6 {[%clk 0:00:22]} 36. Qa3 {[%clk 0:00:22]}  Qc5 {[%clk 0:00:15]} 37. Qxc5 {[%clk 0:00:20]}  Rxc5 {[%clk 0:00:15]} 38. b4 {[%clk 0:00:20]}  Rc8 {[%clk 0:00:10]} 39. c5 {[%clk 0:00:20]}  Rxd5 {[%clk 0:00:11]} 40. Bxd5 {[%clk 0:00:20]}  Bxf5 {[%clk 0:00:11]} 41. gxf6+ {[%clk 0:00:20]}  gxf6 {[%clk 0:00:11]} 42. Be4 {[%clk 0:00:20]}  Be6 {[%clk 0:00:11]} 43. Ra1 {[%clk 0:00:20]}  f5 {[%clk 0:00:12]} 44. Bb7 {[%clk 0:00:19]}  Rb8 {[%clk 0:00:12]} 45. Rxe5 {[%clk 0:00:18]}  Rxb7 {[%clk 0:00:12]} 46. Rxa6 {[%clk 0:00:18]}  Rxb4 {[%clk 0:00:12]} 47. Raxe6+ {[%clk 0:00:17]}  Kd7 {[%clk 0:00:13]} 48. Rd6+ {[%clk 0:00:18]}  Kc7 {[%clk 0:00:13]} 49. Re7+ {[%clk 0:00:18]}  Kc8 {[%clk 0:00:14]} 50. Rh6 {[%clk 0:00:17]}  Rxh4+ {[%clk 0:00:14]} 51. Kg3 {[%clk 0:00:17]}  Rg4+ {[%clk 0:00:15]} 52. Kf3 {[%clk 0:00:18]}  Rg8 {[%clk 0:00:16]} 53. Rxh5 {[%clk 0:00:17]}  f4 {[%clk 0:00:16]} 54. Kxf4 {[%clk 0:00:17]} 1-0


[Site "https://www.chess.com"]